Cogmind - Beta 14 @@@ ROGUE MODE // 2025.01.19 @ 17:22:17 Player: SuperSwiss Result: Destroyed by 3M-D77(R) with Subdweller Laser Performance ------------- Evolutions (0) 0 Regions Visited (3) 600 Robots Destroyed (35) 175 Value Destroyed (795) 795 Prototype IDs (1) 20 Alien Tech Used (0) 0 Bonus (19) 19 TOTAL SCORE: 1609 Bonus ------- High Alert Combat Kills 19 Cogmind --------- Core Integrity 0/250 Matter 226/300 Energy 123/125 System Corruption 2% Temperature Cool (6) Movement Rolling (110) Location -10/Subcaves Parts ------- > --- POWER (1) -------- Light Ion Engine > --- PROPULSION (2) --- Subdweller Monowheel Subdweller Monowheel > --- UTILITY (2) ------ Large Storage Unit Improved Signal Interpreter > --- WEAPON (2) ------- Subdweller Machine Gun Barrage Gun > --- INVENTORY (15) --- Flight Unit Flight Unit Cryofiber Web Experimental Sensor Array Seismic Detector Light Armor Plating Makeshift Kinetic Plating Scrap Shield Light Assault Rifle Makeshift Shrapnel Gun Grenade Launcher Rocket Launcher Datajack Peak State ------------ > --- POWER ------------ Subdweller Power Source > --- PROPULSION ------- Subdweller Monowheel Subdweller Monowheel > --- UTILITY ---------- Large Storage Unit Improved Signal Interpreter > --- WEAPON ----------- Subdweller Laser Barrage Gun > --- INVENTORY -------- Light Ion Engine Flight Unit Flight Unit Cryofiber Web Experimental Sensor Array Seismic Detector Light Armor Plating Light Armor Plating Light Armor Plating Makeshift Kinetic Plating Grenade Launcher Rocket Launcher Datajack [Rating: 17] Favorites ----------- Power Light Ion Engine Engine Light Ion Engine Propulsion Light Treads Treads Light Treads Wheel Subdweller Monowheel Flight Unit Flight Unit Utility Large Storage Unit Device Seismic Detector Storage Large Storage Unit Processor Improved Signal Interpreter Weapon Assault Rifle Energy Gun Subdweller Laser Ballistic Gun Assault Rifle Launcher Grenade Launcher Build | -11 -10 -10 -10 ------- Run | Yrd Mat Min Sub Slots Evolved . | . . . . Power . | . . . . Propulsion . | . . . . Utility . | . . . . Weapon . | . . . . Parts Attached 32 | 6 6 5 15 Power 4 | 1 1 . 2 Engine 4 | 1 1 . 2 Core . | . . . . Reactor . | . . . . Propulsion 8 | 2 . . 6 Treads 2 | 2 . . . Leg . | . . . . Wheel 2 | . . . 2 Hover . | . . . . Flight 4 | . . . 4 Utility 7 | 1 3 3 . Device 4 | . 2 2 . Storage 2 | 1 1 . . Processor 1 | . . 1 . Hackware . | . . . . Protection . | . . . . Artifact . | . . . . Weapon 13 | 2 2 2 7 Energy Gun 1 | . . . 1 Energy Cannon . | . . . . Ballistic Gun 9 | 2 1 2 4 Ballistic Cannon . | . . . . Launcher 3 | . 1 . 2 Special Weapon . | . . . . Impact Weapon . | . . . . Slashing Weapon . | . . . . Piercing Weapon . | . . . . Special Melee Weapon . | . . . . Unidentified Prototypes 1 | . . 1 . Parts Lost 8 | . 1 1 6 Power 1 | . . . 1 Propulsion 4 | . . . 4 Utility 1 | . 1 . . Weapon 2 | . . 1 1 Highest Loss Streak 3 | . 1 1 3 To Critical Strikes . | . . . . Average Slot Usage (%) 97 | . 96 100 96 Engine 13 | . 14 14 13 Treads 21 | . 28 28 9 Wheel 3 | . . . 11 Flight 1 | . . . 4 Device 6 | . 11 7 . Storage 14 | . 14 14 14 Processor 7 | . . 6 14 Ballistic Gun 25 | . 27 28 20 Launcher 2 | . . . 5 Peak Build Rating 17 | 6 8 16 17 Average Rating 10 | 4 7 9 13 On Entrance 6 | . 6 8 11 Naked Turns . | . . . . Heaviest Build 32 | 13 28 28 32 Greatest Support 40 | 40 40 40 40 Greatest Overweight (x) 3 | 1 . . 3 Average Overweight (x) . | . . . . Largest Inventory Capacity 15 | 8 15 15 15 Average Capacity 14 | 7 12 15 15 Most Carried 15 | 5 11 15 15 Average Carried 11 | 1 8 13 13 Final Capacity 15 | 8 15 15 15 Final Carried 14 | 2 11 14 14 Class Distribution -------------------- 97% | Mutant Dominant Class ---------------- Mutant | -10/Materials Mutant | -10/Mines Mutant | -10/Subcaves Resources | -11 -10 -10 -10 ----------- Run | Yrd Mat Min Sub Matter Collected 1010 | 280 256 100 374 Remotely . | . . . . Salvage Created 1039 | 82 484 49 424 Parts 80 | 14 36 6 24 Haulers Intercepted 1 | . 1 . . Recyclers Shooed . | . . . . Parts Field Recycled . | . . . . Retrieved Matter . | . . . . Parts Self-Destructed 13 | . . . 13 Prevented . | . . . . Kills | -11 -10 -10 -10 ------- Run | Yrd Mat Min Sub Combat Hostiles Destroyed 28 | . 14 3 11 Guns 25 | . 14 3 8 AOE 3 | . . . 3 Classes Destroyed 8 | 1 5 . 2 Tunneler 4 | 4 . . . Hauler 1 | . 1 . . Recycler 1 | . 1 . . Operator 1 | . 1 . . Swarmer 12 | . 9 3 . Grunt 8 | . 5 . 3 Sentry 1 | . . . 1 Subdweller 7 | . . . 7 Best Kill Streak 4 | 4 4 3 4 Combat Bots Only 4 | . 4 3 4 Max Kills in Single Turn 2 | 1 1 1 2 Gunslinging . | . . . . Exploded 2 | . . . 2 Melee . | . . . . Uniques/NPCs Destroyed . | . . . . Combat | -11 -10 -10 -10 -------- Run | Yrd Mat Min Sub Hostile Shots Fired 110 | . 57 9 44 Missed 40 | . 20 2 18 Damage Taken 1167 | . 386 54 727 Core 256 | . 59 6 191 Absorbed by Shields . | . . . . Core Remaining (%) 100 | 100 . . . Volleys Fired 98 | 5 44 6 43 Largest 2 | 2 2 2 2 Hottest 58 | 40 50 40 58 Shots Fired 179 | 10 90 12 67 Gun 162 | 10 89 12 51 Cannon . | . . . . Launcher 17 | . 1 . 16 Special . | . . . . Kinetic 162 | 10 89 12 51 Thermal . | . . . . Explosive 17 | . 1 . 16 Electromagnetic . | . . . . Robot Hit Streak 11 | 6 7 11 9 Robot Miss Streak 4 | . 4 3 3 Penetration Max . | . . . . Secondary Targets 1 | . 1 . . Max Gunslinging Chain 1 | . 1 . . Shots Hit Robots 93 | 6 46 7 34 Core Hits 54 | 4 26 4 20 Critical Kills 1 | . . . 1 Critical Parts Destroyed . | . . . . Critical Strikes 1 | . . . 1 Destroy 1 | . . . 1 Melee Attacks . | . . . . Impact . | . . . . Slashing . | . . . . Piercing . | . . . . Sneak Attacks . | . . . . Combat Hostiles . | . . . . Follow-up Attacks . | . . . . Damage Inflicted 1413 | 68 516 82 747 Guns 1128 | 68 499 82 479 Cannons . | . . . . Explosions 285 | . 17 . 268 Melee . | . . . . Ramming . | . . . . Kinetic 1128 | 68 499 82 479 Thermal . | . . . . Explosive 285 | . 17 . 268 Electromagnetic . | . . . . Impact . | . . . . Slashing . | . . . . Piercing . | . . . . Highest Corruption 2 | . 2 2 2 Average Corruption 2 | . 2 2 2 Corruption Purged . | . . . . Corruption Blocked . | . . . . Effects 41 | . 9 17 15 Message Errors 9 | . 3 4 2 Matter Fused 8 | . 2 4 2 Heat Flow Errors 1 | . . . 1 Energy Discharges 10 | . 2 5 3 Data Loss (minor) 4 | . . 2 2 Data Loss (major) 4 | . . 2 2 Misfires 4 | . 2 . 2 Alerts 1 | . . . 1 Overload Shots . | . . . . Overflow Damage 5 | . . . 5 Projectiles . | . . . . Explosions 5 | . . . 5 Melee . | . . . . Knockbacks . | . . . . Impact . | . . . . Kinetic . | . . . . Secondary . | . . . . Self-Inflicted Damage 117 | . . . 117 Shots 4 | . . . 4 Rammed . | . . . . Targets Rammed . | . . . . Kicked . | . . . . Crushed . | . . . . Highest Temperature 92 | . 18 . 92 Average Temperature 18 | . 8 . 52 Received Heat Transfer 183 | . 66 . 117 Siege Activations . | . . . . Robots Corrupted . | . . . . Combat Hostiles . | . . . . Parts Fried . | . . . . Impact Corruptions . | . . . . Robots Melted . | . . . . Combat Hostiles . | . . . . Parts Melted 2 | . . . 2 Heat Transferred . | . . . . Parts Sabotaged . | . . . . Parts Stolen . | . . . . Parts Stripped . | . . . . Power Chain Reactions . | . . . . Alert | -11 -10 -10 -10 ------- Run | Yrd Mat Min Sub Peak Influence 437 | 20 437 96 . Initial 96 | . 13 96 . Average 117 | 6 204 40 . Maximum Alert Level 2 | . 2 . . Low Security (%) 72 | 100 41 100 . Level 1 26 | . 56 . . Level 2 . | . 2 . . Level 3 . | . . . . Level 4 . | . . . . Level 5 . | . . . . High Security . | . . . . Max Security . | . . . . Squads Dispatched 4 | . 3 1 . Investigation 2 | . 1 1 . Extermination . | . . . . Reinforcement 2 | . 2 . . Assault . | . . . . Garrison . | . . . . Intercept . | . . . . Searches Triggered . | . . . . Construction Impeded . | . . . . Haulers Reinforced . | . . . . Active Scanning Responses . | . . . . Cargo Convoy Interrupts . | . . . . Stealth | -11 -10 -10 -10 --------- Run | Yrd Mat Min Sub Distress Signals 5 | . 5 . . Communications Jammed . | . . . . Distress Signals . | . . . . Times Spotted 43 | . 29 3 11 Peak Tracking Total 5 | . 5 3 2 Tactical Retreats 4 | . 4 . . Traps | -11 -10 -10 -10 ------- Run | Yrd Mat Min Sub Traps Triggered 4 | . 3 . 1 Indirectly . | . . . . Trap Hack Attempts . | . . . . Triggered . | . . . . Disarmed . | . . . . Reprogrammed . | . . . . Reused . | . . . . Traps Extracted . | . . . . Installed . | . . . . Triggered . | . . . . Machines | -11 -10 -10 -10 ---------- Run | Yrd Mat Min Sub Machines Disabled . | . . . . Max in Single Turn . | . . . . Machines Repaired . | . . . . Machines Dismantled . | . . . . Machines Sabotaged . | . . . . Overloaded Fab Kills . | . . . . Hacking | -11 -10 -10 -10 --------- Run | Yrd Mat Min Sub Machines Accessed 6 | . 3 1 2 Terminals 3 | . 3 . . Fabricators . | . . . . Repair Stations . | . . . . Recycling Units . | . . . . Scanalyzers . | . . . . Garrison Access . | . . . . Total Hacks 8 | . 5 1 2 Successful 5 | . 2 1 2 Failed 3 | . 3 . . Catastrophic . | . . . . Database Lockouts . | . . . . Manual 4 | . 4 . . Terminals 5 | . 5 . . Fabricators . | . . . . Repair Stations . | . . . . Recycling Units . | . . . . Scanalyzers . | . . . . Garrison Access . | . . . . Terminal Hacks 4 | . 1 1 2 Open Door 2 | . . 1 1 Hauler Manifests 1 | . 1 . . Release Object 1 | . . . 1 Fabricator Hacks . | . . . . Repair Station Hacks . | . . . . Recycling Unit Hacks . | . . . . Scanalyzer . | . . . . Garrison Access Hacks . | . . . . Unauthorized Hacks 1 | . 1 . . Terminals 1 | . 1 . . Botnet 1 | . 1 . . Fabricators . | . . . . Repair Stations . | . . . . Recycling Units . | . . . . Scanalyzers . | . . . . Garrison Access . | . . . . Data Cores Recovered . | . . . . Used . | . . . . Hacking Detections 2 | . 2 . . Full Trace Events . | . . . . Feedback Events . | . . . . Feedback Blocked . | . . . . Robot Schematics Acquired . | . . . . Robots Built . | . . . . Authchips . | . . . . Time . | . . . . Total Robot Build Rating . | . . . . Part Schematics Acquired . | . . . . Parts Built . | . . . . Authchips . | . . . . Time . | . . . . Total Part Build Rating . | . . . . Parts Repaired . | . . . . Time . | . . . . Parts Recycled . | . . . . Recycled Matter . | . . . . Retrieved Matter . | . . . . Retrieved Components . | . . . . Parts Scanalyzed . | . . . . Part Schematics Acquired . | . . . . Parts Damaged . | . . . . Bothacking | -11 -10 -10 -10 ------------ Run | Yrd Mat Min Sub Used RIF Installer . | . . . . Robots Hacked . | . . . . Non-combat . | . . . . Combat . | . . . . Robot Hacks Applied . | . . . . Relay Couplers Released . | . . . . Fabnet Peak Effective % . | . . . . Robots Rewired . | . . . . Allies Hacked . | . . . . Hacks Repelled . | . . . . Allies | -11 -10 -10 -10 -------- Run | Yrd Mat Min Sub Total Allies . | . . . . Largest Group . | . . . . Highest-Rated Group . | . . . . Highest-Rated Ally . | . . . . Total Orders . | . . . . Ally Attacks . | . . . . Total Damage . | . . . . Kills . | . . . . Allies Corrupted . | . . . . Allies Melted . | . . . . Intel | -11 -10 -10 -10 ------- Run | Yrd Mat Min Sub Robot Analysis Total . | . . . . Derelict Logs Recovered 4 | . . 2 2 Drone Launches . | . . . . Drone Recoveries . | . . . . Exploration | -11 -10 -10 -10 ------------- Run | Yrd Mat Min Sub Turns Passed 3636 | 77 1139 1186 1234 Spaces Moved 2071 | 45 606 718 702 Core 19 | 19 . . . Treads 1621 | 26 606 718 271 Legs . | . . . . Wheels 373 | . . . 373 Hover . | . . . . Flight 58 | . . . 58 Fastest Speed 50 | 50 160 160 110 Average Speed 156 | 114 160 160 152 Slowest Speed 277 | 160 160 160 277 Overloaded Moves . | . . . . Propulsion Burnouts . | . . . . Robots Hopped . | . . . . Cave-ins Triggered . | . . . . Exploration Rate (%) 59 | 3 88 99 49 Regions Visited 3 Branch Regions 2 Pre-discovered Areas 1 | . . . 1 Known Exits Taken 1 | . . 1 . Unknown Exits Taken 2 | 1 1 . . Scrap Searched 5 | . . 2 3 Spaces Dug . | . . . . Terrain Destroyed 85 | . 8 . 77 Melee . | . . . . Projectile . | . . . . AOE 85 | . 8 . 77 Terrain Rammed . | . . . . Walls Destroyed . | . . . . Machines Disabled . | . . . . Actions | -11 -10 -10 -10 --------- Run | Yrd Mat Min Sub Total 2303 | 61 696 744 802 Wait 63 | . 26 9 28 Move 2068 | 44 605 717 702 Hop . | . . . . Pick Up 32 | 6 12 5 9 Fast Attach 4 | 2 1 . 1 Attach 15 | 4 2 2 7 Detach 1 | . . 1 . Swap 13 | . 3 3 7 Drop 9 | . 3 1 5 Fire 98 | 5 44 6 43 Melee . | . . . . Ram . | . . . . Kick . | . . . . Crush . | . . . . Escape Stasis . | . . . . Rewire . | . . . . Trap . | . . . . Miscellaneous . | . . . . Route ------- -11/Scrapyard -10/Materials (discovered 5 exits: *Mat x3 / *Min x2) -10/Mines (discovered 3 exits: *Mat x2 / *Sub) -10/Subcaves (discovered 1 exit: *Mat) History --------- Turn | Location | Event 23 | -11/Scrapyard | Discovered new exit (range 15) 78 | -11/Scrapyard | Entered Materials 318 | -10/Materials | Build established: Mutant 502 | -10/Materials | Discovered new exit (range 15) 676 | -10/Materials | Discovered new exit (range 16) 727 | -10/Materials | Discovered new exit (range 8) 797 | -10/Materials | Discovered new exit (range 14) 826 | -10/Materials | Discovered new exit (range 6) 1217 | -10/Materials | Entered Mines 1293 | -10/Mines | Found a damaged Exp. Sensor Array with a note attached 1296 | -10/Mines | Found Prototype Device 1297 | -10/Mines | Identified Exp. Sensor Array 1494 | -10/Mines | Discovered new exit (range 3) 1536 | -10/Mines | Received a Rocket Launcher from a helpful Derelict 1612 | -10/Mines | Learned Materials stockpile data 1692 | -10/Mines | Met a Derelict shopkeep closing up shop 1694 | -10/Mines | Learned 2 Materials zone layouts 1821 | -10/Mines | Discovered new exit (range 7) 1860 | -10/Mines | Identified exit to Materials 2383 | -10/Mines | Discovered new exit (range 15) 2402 | -10/Mines | Identified exit to Subcaves 2403 | -10/Mines | Entered Subcaves 2424 | -10/Subcaves | Learned Materials stockpile data 2910 | -10/Subcaves | Shifting Twisted Machinery released Mak. Kinetic Plating 2990 | -10/Subcaves | Shifting Twisted Machinery released Barrage Gun 3093 | -10/Subcaves | Core integrity fell below 50% 3094 | -10/Subcaves | Learned location of Zion (-7) 3162 | -10/Subcaves | Lost 3 parts (2n1w) 3180 | -10/Subcaves | Discovered new exit (range 14) 3193 | -10/Subcaves | Identified exit to Materials 3622 | -10/Subcaves | Core integrity fell below 20% 3637 | -10/Subcaves | Destroyed by 3M-D77(R) with Subdweller Laser Last Messages --------------- 03279_ Found Sub. Machine Gun. 03279_ Found 43 Matter. 03280_ Acquired 30 matter. 03280_ Dropped Sub. Laser. 03282_ Acquired Sub. Machine Gun. 03283_ Acquired 10 matter. 03397_ System corrupted: Substantial component data lost. 03452_ 21-KA8(R) destroyed. 03455_ ZL-357(R) destroyed. 03458_ Dropped Lgt. Armor Plating. 03459_ Acquired 24 matter. 03461_ Acquired Unknown Protection. 03474_ Subatomizers dissect the Sub. Laser. 03490_ System corrupted: Matter fused (-10). 03496_ Subatomizers dissect the Sub. Laser. 03508_ Dropped Lgt. Armor Plating. 03583_ System corrupted: Matter fused (-6). 03623_ System corrupted: Energy discharge (-43). 03634_ US-6QI(R) destroyed. 03636_ 3M-D77(R) affixes Scrap Shield Fragment to Unknown Protection. Map ----- +----------------------------------------------------+ | ???????????????? ?????# ###### ### | | ????????????????? ????###### # ## | | ??????????????????? ???### # " #" | | ????????????????????# ?## # " " " ##### | | ?????????????????????# ## &# ##??## | | ???????????????????????# # & #???## | | ??????????????????????## ##" " " ##???# | | ??????????????????????# ##?##### ##??## | | ??????????????????????# ##??????#### #???### | | ??????????????????????## #???????#### " ##?????? | | ???????????????????????## #??????## " """#?##???? | | ????????????????????????# ???#### "" " ##"##??? | | ????????????????????????# #### " #??? | | ???????????????????????? % " ###??? | | ???????????????????????? % " ""###????? | | ??????????????????????? ##"" " ###???? | | ???????????????????????##### ##?##""" " "##?? | | ??????????????????????????## #???##"" " ###"" | | ??????????? ??????????### #????##""" #?? | | ??????????? ????????# #?????##""######?? | | ?????????? ???###?# #???????# "##?????? | | ????????????? ### ## ###?????# "#?????# | | ????????????????# ##????# #????## | | ???????????????????# !R #???## ##?#### | | ???????????????????# &%* ## #???# ##?##" | | ???????????????????## #@ #### ###?# "#??# ""! | | ???????????????????# ## #??# ### "#?## "" | | ???????????????????# ?### ?## # ### "" | | ??????????????????# ????# ##### " "" | | ????????????????? ?????###??# "" "" | | ???????????????? ??????????# # #"# "# | | ??????????????? ??????????#### ###### "## | | ?????????????# ###??????????????########???# ""## | | ?????????????##?????????????????????????????# "## | | ????????????????????????????????????????????## "" | | ?????????????????????????????????????????????### " | | ???????????????????????????????????????????????## | | ????????????????????????????????????????????????# | | ????????????????????????????????????????????????#" | | ????????????????????????????????????????????????#" | | ????????????????????????????????????????????????## | | ?????????????????????????????????????????????????? | | ?????????????????????????????????????????????????? | | ?????????????????????????????????????????????????? | | ?????????????????????????????????????????????????? | | ?????????????????????????????????????????????????? | | ?????????????????????????????????????????????????? | | ?????????????????????????????????????????????????? | | ?????????????????????????????????????????????????? | | ?????????????????????????????????????????????????? | +----------------------------------------------------+ Best States ------------- Heat Dissipation 25 Energy Generation 15 Energy Capacity 250 Matter Stores 300 Matter Capacity 300 Sight Range 16 Terrain Scan Density 10 Evasion (%) 40 Recoil Reduction 2 Item Schematics ----------------- None Robot Schematics ------------------ None Fabricated ------------ Nothing Alien Tech Used ----------------- None Achievements -------------- None Challenges ------------ None Game ------ Seed NeutronDisruptionSegregator Manual? 0 Play Time 00:39:54 Cumulative 48.0 hours Start 2025.01.19 @ 13:50:47 End 2025.01.19 @ 17:22:17 Sessions 1 Manual Loads 0 Difficulty Rogue Special Mode None Game No. 55 Rogue 52 Adventurer 0 Explorer 3 Win Type - Total 0 Types 0/0/0/0/0/0/0/0/0 Lore% 10 Gallery% 34 Achievement% 30 Wizard Run 0 Options --------- Layout 0 ASCII 0 Keyboard 0 Movement Numpad Keybinds 0 Fullscreen 0 Font 16/SmallcapsGlow Map View 88x55 Zoom Use 0% Tactical HUD 1 Map Filters NONE Filters NONE Steam 1 RUN: d311f4d9-7be2-4a6b-ba08-f467a1777b73